fUSD/lending_fUSD_20240630
["ID","MTS","AMOUNT","RATE_DAILY","PERIOD"]
[330734250,1719743449515,-151.0,0.00014,2]
[330734251,1719743449524,-151.0,0.00014,2]
[330734252,1719743449533,-213.095979,0.00014,2]
[330734253,1719743449542,-213.095979,0.00014,2]
[330734254,1719743449551,-213.095979,0.00014,2]
[330734255,1719743449563,-213.095979,0.00014,2]
[330734256,1719743449574,-151.0,0.00014,2]
[330734257,1719743449585,-151.0,0.00014,2]
[330734258,1719743449595,-151.0,0.00014,2]
[330734259,1719743449604,-151.0,0.00014,2]
[330734260,1719743449613,-168.451091,0.00014,2]
[330734261,1719743449623,-168.451091,0.00014,2]
[330734262,1719743449632,-153.591605,0.00014,2]
[330734263,1719743449642,-168.451091,0.00014,2]
[330734264,1719743449655,-168.451091,0.00014,2]
[330734265,1719743449664,-275.897227,0.00014,2]
[330734266,1719743449674,-275.897227,0.00014,2]
[330734267,1719743449683,-275.897227,0.00014,2]
[330734268,1719743449694,-275.897227,0.00014,2]
[330734269,1719743449703,-151.0,0.00014,2]
[330734270,1719743449713,-156.709284,0.00014,2]
[330734271,1719743449723,-449.94063557,0.00014002,2]
[330734272,1719743449735,-901.68705176,0.00014003,2]
[330734273,1719743449745,-690.0,0.00014008,2]
[330734274,1719743449755,-500.0,0.00014012,2]
[330734275,1719743449764,-200.0,0.00014012,2]
[330734276,1719743449774,-500.0,0.00014031,2]
[330734277,1719743449783,-200.0,0.00014031,2]
[330734278,1719743449792,-500.0,0.00014066,2]
[330734279,1719743449801,-200.0,0.00014066,2]
[330734280,1719743449814,-183.63,0.00014072,2]
[330734281,1719743449823,-500.0,0.00014101,2]
[330734282,1719743449834,-500.0,0.00014101,2]
[330734283,1719743449843,-1616.09,0.00014101,2]
[330734284,1719743449852,-500.0,0.00014102,3]
[330734285,1719743449862,-500.0,0.00014102,3]
[330734286,1719743449872,-500.0,0.00014102,3]
[330734287,1719743449881,-909.44,0.00014102,3]
[330734288,1719743449890,-500.0,0.00014102,3]
[330734289,1719743449899,-599.55,0.00014102,3]
[330734290,1719743449909,-1160.11,0.00014102,3]
[330734291,1719743449919,-1059.76,0.00014102,3]
[330734292,1719743449928,-500.0,0.00014102,3]
[330734293,1719743449937,-500.0,0.00014102,3]
[330734294,1719743449947,-929.43,0.00014102,3]
[330734295,1719743449956,-1050.32,0.00014102,3]
[330734296,1719743449966,-500.0,0.00014102,3]
[330734297,1719743449975,-780.95,0.00014102,3]
[330734298,1719743449984,-500.0,0.00014102,3]
[330734299,1719743449993,-721.64,0.00014102,3]
[330734300,1719743450002,-500.0,0.00014102,3]
[330734301,1719743450012,-500.0,0.00014102,3]
[330734302,1719743450021,-810.04,0.00014102,3]
[330734303,1719743450030,-1114.98,0.00014102,3]
[330734304,1719743450039,-798.72,0.00014102,3]
[330734305,1719743450049,-1264.13,0.00014102,3]
[330734306,1719743450062,-744.2,0.00014102,3]
[330734307,1719743450075,-500.0,0.00014102,3]
[330734308,1719743450084,-500.0,0.00014102,3]
[330734309,1719743450093,-572.72,0.00014102,3]
[330734310,1719743450102,-898.55,0.00014102,3]
[330734311,1719743450111,-588.15,0.00014102,3]
[330734312,1719743450120,-754.6,0.00014102,3]
[330734313,1719743450129,-500.0,0.00014102,3]
[330734314,1719743450139,-948.51,0.00014102,3]
[330734315,1719743450148,-791.26,0.00014102,3]
[330734316,1719743450157,-561.73,0.00014102,3]
[330734317,1719743450166,-519.66,0.00014102,3]
[330734318,1719743450176,-778.19,0.00014102,3]
[330734319,1719743450184,-500.0,0.00014102,3]
[330734320,1719743450194,-1014.91,0.00014102,3]
[330734321,1719743450203,-1053.02,0.00014102,3]
[330734322,1719743450212,-1263.09,0.00014102,3]
[330734323,1719743450221,-993.05,0.00014102,3]
[330734324,1719743450231,-555.38,0.00014102,3]
[330734325,1719743450240,-939.23,0.00014102,3]
[330734326,1719743450249,-500.0,0.00014102,3]
[330734327,1719743450259,-1267.4,0.00014102,3]
[330734328,1719743450268,-949.8,0.00014102,3]
[330734329,1719743450277,-1000.86,0.00014102,3]
[330734330,1719743450286,-725.87,0.00014102,3]
[330734331,1719743450295,-1050.49,0.00014102,3]
[330734332,1719743450304,-825.38,0.00014102,3]
[330734333,1719743450315,-523.43,0.00014102,3]
[330734334,1719743450324,-997.31,0.00014102,3]
[330734335,1719743450333,-500.0,0.00014102,3]
[330734336,1719743450343,-2295.61,0.00014102,3]
[330734337,1719743450352,-798.38,0.00014102,3]
[330734338,1719743450361,-500.0,0.00014102,3]
[330734339,1719743450371,-1114.04,0.00014102,3]
[330734340,1719743450380,-1817.64,0.00014102,3]
[330734341,1719743450389,-692.38,0.00014102,3]
[330734342,1719743450398,-749.77,0.00014102,3]
[330734343,1719743450407,-853.7,0.00014102,3]
[330734344,1719743450417,-500.0,0.00014102,3]
[330734345,1719743450426,-500.0,0.00014102,3]
[330734346,1719743450435,-500.0,0.00014102,3]
[330734347,1719743450445,-940.19,0.00014102,3]
[330734348,1719743450454,-1280.03,0.00014102,3]
[330734349,1719743450463,-674.64,0.00014102,3]
[330734350,1719743450473,-928.49,0.00014102,3]
[330734351,1719743450482,-1111.68,0.00014102,3]
[330734352,1719743450492,-764.46,0.00014102,3]
[330734353,1719743450502,-500.0,0.00014102,3]
[330734354,1719743450511,-500.0,0.00014102,3]
[330734355,1719743450520,-488.58,0.00014102,3]
[330734356,1719743450530,-943.83,0.00014102,3]
[330734357,1719743450539,-1060.95,0.00014102,3]
[330734358,1719743450548,-500.0,0.00014102,3]
[330734359,1719743450558,-500.0,0.00014102,3]
[330734360,1719743450568,-500.0,0.00014102,3]
[330734361,1719743450577,-500.0,0.00014102,3]
[330734362,1719743450586,-597.9,0.00014102,3]
[330734363,1719743450595,-500.0,0.00014102,3]
[330734364,1719743450604,-589.77,0.00014102,3]
[330734365,1719743450614,-500.0,0.00014102,2]
[330734366,1719743450624,-200.0,0.00014102,2]
[330734367,1719743450634,-500.0,0.00014103,2]
[330734368,1719743450648,-1034.8,0.00014103,3]
[330734369,1719743450660,-500.0,0.00014103,3]
[330734370,1719743450670,-500.0,0.00014103,3]
[330734371,1719743450680,-833.96,0.00014103,3]
[330734372,1719743450691,-1168.54,0.00014103,3]
[330734373,1719743450700,-500.0,0.00014103,3]
[330734374,1719743450709,-612.33,0.00014103,3]
[330734375,1719743450718,-500.0,0.00014103,3]
[330734376,1719743450728,-921.16,0.00014103,3]
[330734377,1719743450737,-808.39,0.00014103,3]
[330734378,1719743450747,-866.36,0.00014103,3]
[330734379,1719743450756,-1019.84,0.00014103,3]
[330734380,1719743450765,-931.91,0.00014103,3]
[330734381,1719743450775,-1061.32,0.00014103,3]
[330734382,1719743450784,-500.0,0.00014103,3]
[330734383,1719743450794,-585.68,0.00014103,3]
[330734384,1719743450803,-739.14,0.00014103,3]
[330734385,1719743450812,-849.37,0.00014103,3]
[330734386,1719743450822,-990.51,0.00014103,3]
[330734387,1719743450831,-500.0,0.00014103,3]
[330734388,1719743450841,-597.11,0.00014103,3]
[330734389,1719743450850,-720.31,0.00014103,3]
[330734390,1719743450859,-986.25,0.00014103,3]
[330734391,1719743450868,-919.39,0.00014103,3]
[330734392,1719743450877,-687.94,0.00014103,3]
[330734393,1719743450887,-500.0,0.00014103,3]
[330734394,1719743450896,-1048.65,0.00014103,3]
[330734395,1719743450905,-505.05,0.00014103,3]
[330734396,1719743450914,-500.0,0.00014103,3]
[330734397,1719743450924,-500.0,0.00014103,3]
[330734398,1719743450933,-939.99,0.00014103,3]
[330734399,1719743450942,-609.58,0.00014103,3]
[330734400,1719743450951,-789.77,0.00014103,3]
[330734401,1719743450960,-1380.76,0.00014103,3]
[330734402,1719743450969,-672.47,0.00014103,3]
[330734403,1719743450979,-1693.99,0.00014103,3]
[330734404,1719743450989,-500.0,0.00014103,3]
[330734405,1719743450998,-550.75,0.00014103,3]
[330734406,1719743451007,-617.38,0.00014103,3]
[330734407,1719743451017,-500.0,0.00014103,3]
[330734408,1719743451026,-588.84,0.00014103,3]
[330734409,1719743451035,-5443.59,0.00014103,3]
[330734410,1719743451044,-525.81,0.00014103,3]
[330734411,1719743451053,-528.69,0.00014103,3]
[330734412,1719743451062,-1147.83,0.00014103,3]
[330734413,1719743451071,-500.0,0.00014103,3]
[330734414,1719743451081,-250.92,0.00014103,2]
[330734415,1719743451091,-500.0,0.00014103,3]
[330734416,1719743451102,-500.0,0.00014103,3]
[330734417,1719743451112,-500.0,0.00014103,3]
[330734418,1719743451123,-685.17,0.00014103,3]
[330734419,1719743451132,-568.98,0.00014103,3]
[330734420,1719743451142,-500.0,0.00014103,3]
[330734421,1719743451154,-694.11,0.00014103,3]
[330734422,1719743451163,-676.44,0.00014103,3]
[330734423,1719743451173,-3376.43,0.00014103,3]
[330734424,1719743451183,-500.0,0.00014103,3]
[330734425,1719743451192,-530.26,0.00014103,3]
[330734426,1719743451202,-500.0,0.00014103,3]
[330734427,1719743451211,-500.0,0.00014103,3]
[330734428,1719743451220,-498.79,0.00014103,3]
[330734429,1719743451231,-500.0,0.00014103,3]
[330734430,1719743451241,-500.0,0.00014103,3]
[330734431,1719743451251,-2523.91,0.00014103,3]
[330734432,1719743451260,-981.6,0.00014103,3]
[330734433,1719743451270,-500.0,0.00014103,3]
[330734434,1719743451279,-500.0,0.00014103,3]
[330734435,1719743451289,-1636.04,0.00014103,3]
[330734436,1719743451299,-500.0,0.00014103,3]
[330734437,1719743451310,-1182.48,0.00014103,3]
[330734438,1719743451319,-1023.22,0.00014103,3]
[330734439,1719743451329,-1814.26,0.00014103,3]
[330734440,1719743451339,-500.0,0.00014103,2]
[330734441,1719743451348,-760.31,0.00014103,3]
[330734442,1719743451358,-828.41,0.00014103,3]
[330734443,1719743451367,-1001.71,0.00014103,3]
[330734444,1719743451377,-567.17,0.00014103,3]
[330734445,1719743451387,-491.73350581,0.00014103,3]
[330734446,1719743451397,-757.05,0.00014103,3]
[330734447,1719743451406,-1481.34,0.00014103,3]
[330734448,1719743451416,-1126.63,0.00014103,3]
[330734449,1719743451425,-500.0,0.00014103,3]
[330734450,1719743451436,-500.0,0.00014103,3]
[330734451,1719743451445,-1753.6,0.00014103,3]
[330734452,1719743451454,-638.65,0.00014103,3]
[330734453,1719743451464,-500.0,0.00014103,3]
[330734454,1719743451473,-500.0,0.00014103,3]
[330734455,1719743451483,-701.96,0.00014103,3]
[330734456,1719743451494,-500.0,0.00014103,3]
[330734457,1719743451503,-602.31,0.00014103,3]
[330734458,1719743451511,-1728.07,0.00014103,3]
[330734459,1719743451521,-960.35,0.00014103,3]
[330734460,1719743451530,-1179.32,0.00014103,3]
[330734461,1719743451539,-1616.09,0.00014103,2]
[330734462,1719743451549,-500.0,0.00014103,3]
[330734463,1719743451559,-2307.68,0.00014103,3]
[330734464,1719743451568,-758.71,0.00014103,3]
[330734465,1719743451577,-500.0,0.00014103,3]
[330734466,1719743451586,-835.89,0.00014103,3]
[330734467,1719743451596,-500.0,0.00014103,3]
[330734468,1719743451606,-924.45,0.00014103,3]
[330734469,1719743451615,-1016.21,0.00014103,3]
[330734470,1719743451624,-7243.27,0.00014103,3]
[330734471,1719743451633,-500.0,0.00014103,3]
[330734472,1719743451645,-500.0,0.00014103,3]
[330734473,1719743451662,-500.0,0.00014103,3]
[330734474,1719743451672,-974.93,0.00014103,3]
[330734475,1719743451682,-500.0,0.00014103,3]
[330734476,1719743451694,-1611.4,0.00014103,3]
[330734477,1719743451703,-733.34,0.00014103,3]
[330734478,1719743451714,-500.0,0.00014103,3]
[330734479,1719743451726,-500.0,0.00014103,3]
[330734480,1719743451737,-924.56,0.00014103,3]
[330734481,1719743451746,-500.0,0.00014103,3]
[330734482,1719743451757,-1318.91,0.00014103,3]
[330734483,1719743451767,-1608.35,0.00014103,3]
[330734484,1719743451778,-500.0,0.00014103,3]
[330734485,1719743451788,-580.79,0.00014104,3]
[330734486,1719743451798,-500.0,0.00014104,3]
[330734487,1719743451809,-500.0,0.00014104,3]
[330734488,1719743451821,-500.0,0.00014104,3]
[330734489,1719743451831,-500.0,0.00014104,3]
[330734490,1719743451842,-500.0,0.00014104,3]
[330734491,1719743451855,-500.0,0.00014104,3]
[330734492,1719743451864,-500.0,0.00014104,3]
[330734493,1719743451874,-152.930079,0.00014104,2]
[330734494,1719743451884,-639.05,0.00014104,3]
[330734495,1719743451894,-500.0,0.00014104,3]
[330734496,1719743451904,-500.0,0.00014104,3]
[330734497,1719743451913,-500.0,0.00014104,3]
[330734498,1719743451923,-500.0,0.00014104,3]
[330734499,1719743451933,-151.0,0.00014104,2]
[330734500,1719743451942,-538.03,0.00014104,3]
[330734501,1719743451951,-500.0,0.00014104,3]
[330734502,1719743451962,-500.0,0.00014104,3]
[330734503,1719743451972,-707.81,0.00014104,3]
[330734504,1719743451984,-500.0,0.00014104,3]
[330734505,1719743451995,-250.0,0.00014104,3]
[330734506,1719743452006,-500.0,0.00014104,3]
[330734507,1719743452016,-500.0,0.00014104,3]
[330734508,1719743452026,-500.0,0.00014104,3]
[330734509,1719743452035,-500.0,0.00014104,3]
[330734510,1719743452047,-500.0,0.00014104,3]
[330734511,1719743452058,-500.0,0.00014104,3]
[330734512,1719743452068,-500.0,0.00014104,3]
[330734513,1719743452079,-500.0,0.00014104,3]
[330734514,1719743452088,-500.0,0.00014104,3]
[330734515,1719743452099,-500.0,0.00014104,3]
[330734516,1719743452110,-500.0,0.00014104,3]
[330734517,1719743452120,-500.0,0.00014104,3]
[330734518,1719743452131,-675.22,0.00014104,3]
[330734519,1719743452140,-500.0,0.00014104,3]
[330734520,1719743452151,-500.0,0.00014104,3]
[330734521,1719743452160,-500.0,0.00014104,3]
[330734522,1719743452174,-565.1,0.00014104,3]
[330734523,1719743452184,-500.0,0.00014104,3]
[330734524,1719743452194,-500.0,0.00014104,3]
[330734525,1719743452204,-500.0,0.00014104,3]
[330734526,1719743452214,-151.0,0.00014104,2]
[330734527,1719743452224,-178.69564803,0.00014104,3]
[330734528,1719743452234,-500.0,0.00014104,3]
[330734529,1719743452244,-600.17,0.00014104,3]
[330734530,1719743452253,-500.0,0.00014104,3]
[330734531,1719743452263,-170.3219681,0.00014104,3]
[330734532,1719743452273,-500.0,0.00014104,3]
[330734533,1719743452292,-500.0,0.00014104,3]
[330734534,1719743452302,-500.0,0.00014104,3]
[330734535,1719743452311,-500.0,0.00014104,3]
[330734536,1719743452321,-500.0,0.00014104,3]
[330734537,1719743452331,-362.27296491,0.00014104,3]
[330734538,1719743452342,-500.0,0.00014104,3]
[330734539,1719743452352,-500.0,0.00014104,3]
[330734540,1719743452362,-500.0,0.00014104,3]
[330734541,1719743452372,-500.0,0.00014104,3]
[330734542,1719743452382,-500.0,0.00014104,3]
[330734543,1719743452392,-500.0,0.00014104,3]
[330734544,1719743452402,-500.0,0.00014104,3]
[330734545,1719743452412,-455.22827935,0.00014104,3]
[330734546,1719743452422,-500.0,0.00014104,3]
[330734547,1719743452431,-500.0,0.00014104,3]
[330734548,1719743452441,-500.0,0.00014104,3]
[330734549,1719743452451,-500.0,0.00014104,3]
[330734550,1719743452461,-500.0,0.00014104,3]
[330734551,1719743452470,-522.24,0.00014104,3]
[330734552,1719743452480,-242.0962262,0.00014104,3]
[330734553,1719743452490,-500.0,0.00014104,3]
[330734554,1719743452501,-500.0,0.00014104,3]
[330734555,1719743452513,-151.0,0.00014104,2]
[330734556,1719743452523,-723.27,0.00014104,3]
[330734557,1719743452533,-500.0,0.00014104,3]
[330734558,1719743452542,-500.0,0.00014104,3]
[330734559,1719743452552,-151.0,0.00014104,2]
[330734560,1719743452562,-500.0,0.00014104,3]
[330734561,1719743452571,-500.0,0.00014104,3]
[330734562,1719743452581,-500.0,0.00014104,3]
[330734563,1719743452592,-500.0,0.00014104,3]
[330734564,1719743452601,-500.0,0.00014104,3]
[330734565,1719743452611,-500.0,0.00014104,3]
[330734566,1719743452620,-500.0,0.00014104,3]
[330734567,1719743452629,-500.0,0.00014104,3]
[330734568,1719743452642,-500.0,0.00014104,3]
[330734569,1719743452657,-500.0,0.00014104,3]
[330734570,1719743452667,-1124.41,0.00014104,3]
[330734571,1719743452677,-500.0,0.00014104,3]
[330734572,1719743452688,-500.0,0.00014104,3]
[330734573,1719743452697,-500.0,0.00014104,3]
[330734574,1719743452707,-791.73,0.00014104,3]
[330734575,1719743452717,-540.09,0.00014104,3]
[330734576,1719743452727,-500.0,0.00014104,3]
[330734577,1719743452737,-500.0,0.00014104,3]
[330734578,1719743452747,-500.0,0.00014104,3]
[330734579,1719743452757,-779.07,0.00014104,3]
[330734580,1719743452767,-574.02,0.00014104,3]
[330734581,1719743452776,-500.0,0.00014104,3]
[330734582,1719743452786,-500.0,0.00014104,3]
[330734583,1719743452795,-500.0,0.00014104,3]
[330734584,1719743452805,-500.0,0.00014104,3]
[330734585,1719743452815,-151.0,0.00014104,2]
[330734586,1719743452825,-500.0,0.00014104,3]
[330734587,1719743452835,-500.0,0.00014104,3]
[330734588,1719743452849,-550.2,0.00014104,3]
[330734589,1719743452859,-500.0,0.00014104,3]
[330734590,1719743452869,-500.0,0.00014104,3]
[330734591,1719743452879,-151.0,0.00014104,2]
[330734592,1719743452889,-550.25,0.00014104,3]
[330734593,1719743452899,-500.0,0.00014104,3]
[330734594,1719743452909,-500.0,0.00014104,3]
[330734595,1719743452919,-500.0,0.00014104,3]
[330734596,1719743452929,-500.0,0.00014104,3]
[330734597,1719743452939,-500.0,0.00014104,3]
[330734598,1719743452949,-766.77,0.00014104,3]
[330734599,1719743452959,-500.0,0.00014104,3]
[330734600,1719743452968,-500.0,0.00014104,3]
[330734601,1719743452978,-634.33,0.00014104,3]
[330734602,1719743452987,-645.61,0.00014104,3]
[330734603,1719743452997,-964.47,0.00014104,3]
[330734604,1719743453006,-500.0,0.00014104,3]
[330734605,1719743453016,-502.23,0.00014104,3]
[330734606,1719743453025,-500.0,0.00014104,3]
[330734607,1719743453035,-538.48,0.00014104,3]
[330734608,1719743453045,-500.0,0.00014104,2]
[330734609,1719743453054,-151.0,0.00014104,2]
[330734610,1719743453065,-151.0,0.00014104,2]
[330734611,1719743453074,-1160.04,0.00014104,3]
[330734612,1719743453083,-500.0,0.00014104,3]
[330734613,1719743453093,-500.0,0.00014104,3]
[330734614,1719743453102,-668.91,0.00014104,3]
[330734615,1719743453112,-151.0,0.00014104,2]
[330734616,1719743453122,-500.0,0.00014104,3]
[330734617,1719743453131,-500.0,0.00014104,3]
[330734618,1719743453141,-151.0,0.00014104,2]
[330734619,1719743453151,-500.0,0.00014104,3]
[330734620,1719743453160,-500.0,0.00014104,3]
[330734621,1719743453170,-182.56268,0.00014104,2]
[330734622,1719743453179,-880.99,0.00014104,3]
[330734623,1719743453189,-510.02,0.00014104,3]
[330734624,1719743453207,-500.0,0.00014104,3]
[330734625,1719743453220,-500.0,0.00014104,3]
[330734626,1719743453233,-500.0,0.00014104,3]
[330734627,1719743453244,-310.90898591,0.00014104,3]
[330734628,1719743453256,-500.0,0.00014104,3]
[330734629,1719743453266,-758.12,0.00014104,3]
[330734630,1719743453276,-500.0,0.00014104,3]
[330734631,1719743453286,-500.0,0.00014104,3]
[330734632,1719743453296,-500.0,0.00014104,3]
[330734633,1719743453306,-500.0,0.00014104,3]
[330734634,1719743453318,-806.73,0.00014104,3]
[330734635,1719743453327,-997.97,0.00014104,3]
[330734636,1719743453336,-500.0,0.00014104,3]
[330734637,1719743453346,-500.0,0.00014104,3]
[330734638,1719743453355,-500.0,0.00014104,3]
[330734639,1719743453365,-151.0,0.00014104,2]
[330734640,1719743453375,-913.9,0.00014104,3]
[330734641,1719743453386,-526.46,0.00014104,3]
[330734642,1719743453396,-500.0,0.00014104,3]
[330734643,1719743453406,-500.0,0.00014104,3]
[330734644,1719743453417,-500.0,0.00014104,3]
[330734645,1719743453427,-500.0,0.00014104,3]
[330734646,1719743453438,-500.0,0.00014104,3]
[330734647,1719743453448,-568.04,0.00014104,3]
[330734648,1719743453459,-500.0,0.00014104,3]
[330734649,1719743453469,-500.0,0.00014104,3]
[330734650,1719743453479,-500.0,0.00014104,3]
[330734651,1719743453489,-500.0,0.00014104,3]
[330734652,1719743453499,-153.758545,0.00014104,2]
[330734653,1719743453509,-500.0,0.00014104,3]
[330734654,1719743453519,-238.68788295,0.00014104,3]
[330734655,1719743453530,-669.92,0.00014104,3]
[330734656,1719743453540,-500.0,0.00014104,3]
[330734657,1719743453550,-500.0,0.00014104,3]
[330734658,1719743453560,-820.91,0.00014104,3]
[330734659,1719743453571,-659.61,0.00014104,3]
[330734660,1719743453581,-500.0,0.00014104,3]
[330734661,1719743453897,-156.783811,0.00014104,2]
[330734662,1719743453907,-1214.78,0.00014104,3]
[330734663,1719743453916,-614.53,0.00014104,3]
[330734664,1719743453926,-1004.0,0.00014104,3]
[330734665,1719743453937,-856.7,0.00014104,3]
[330734666,1719743453952,-772.98,0.00014104,3]
[330734667,1719743453962,-500.0,0.00014104,3]
[330734668,1719743453973,-1007.17,0.00014104,3]
[330734669,1719743453984,-500.0,0.00014104,3]
[330734670,1719743453995,-151.0,0.00014104,2]
[330734671,1719743454005,-500.0,0.00014104,3]
[330734672,1719743454015,-151.0,0.00014104,2]
[330734673,1719743454024,-500.0,0.00014104,3]
[330734674,1719743454035,-932.97,0.00014104,3]
[330734675,1719743454045,-266.885929,0.00014104,2]
[330734676,1719743454055,-996.14,0.00014104,3]
[330734677,1719743454066,-266.885929,0.00014104,2]
[330734678,1719743454076,-628.64,0.00014104,3]
[330734679,1719743454086,-500.0,0.00014104,3]
[330734680,1719743454096,-500.0,0.00014104,3]
[330734681,1719743454106,-500.0,0.00014104,3]
[330734682,1719743454116,-151.0,0.00014104,2]
[330734683,1719743454126,-662.04,0.00014104,3]
[330734684,1719743454136,-617.67,0.00014104,3]
[330734685,1719743454146,-151.0,0.00014104,2]
[330734686,1719743454156,-773.89,0.00014104,3]
[330734687,1719743454166,-151.0,0.00014104,2]
[330734688,1719743454176,-151.0,0.00014104,2]
[330734689,1719743454186,-151.0,0.00014104,2]
[330734690,1719743454196,-500.0,0.00014104,3]
[330734691,1719743454206,-500.0,0.00014104,3]
[330734692,1719743454216,-151.0,0.00014104,2]
[330734693,1719743454226,-500.0,0.00014104,3]
[330734694,1719743454236,-611.58,0.00014104,3]
[330734695,1719743454245,-500.0,0.00014104,3]
[330734696,1719743454255,-1181.37,0.00014104,3]
[330734697,1719743454265,-500.0,0.00014104,3]
[330734698,1719743454275,-500.0,0.00014104,3]
[330734699,1719743454285,-500.0,0.00014104,3]
[330734700,1719743454295,-500.0,0.00014104,3]
[330734701,1719743454305,-685.85,0.00014104,3]
[330734702,1719743454316,-500.0,0.00014104,3]
[330734703,1719743454326,-500.0,0.00014104,3]
[330734704,1719743454336,-890.4,0.00014104,3]
[330734705,1719743454346,-500.0,0.00014104,3]
[330734706,1719743454356,-500.0,0.00014104,3]
[330734707,1719743454366,-151.0,0.00014104,2]
[330734708,1719743454378,-500.0,0.00014104,3]
[330734709,1719743454388,-500.0,0.00014104,3]
[330734710,1719743454399,-500.0,0.00014104,3]
[330734711,1719743454409,-1030.11,0.00014104,3]
[330734712,1719743454419,-500.0,0.00014104,3]
[330734713,1719743454429,-500.0,0.00014104,3]
[330734714,1719743454439,-500.0,0.00014104,3]
[330734715,1719743454450,-544.3837192,0.00014104,3]
[330734716,1719743454460,-151.0,0.00014104,2]
[330734717,1719743454470,-582.08851832,0.00014104,3]
[330734718,1719743454480,-500.0,0.00014104,3]
[330734719,1719743454490,-744.49,0.00014104,3]
[330734720,1719743454500,-500.0,0.00014104,3]
[330734721,1719743454510,-500.0,0.00014104,3]
[330734722,1719743454520,-525.42,0.00014104,3]
[330734723,1719743454531,-151.0,0.00014104,2]
[330734724,1719743454541,-500.0,0.00014104,3]
[330734725,1719743454551,-500.0,0.00014104,3]
[330734726,1719743454562,-155.037626,0.00014104,2]
[330734727,1719743454572,-311.14206,0.00014104,2]
[330734728,1719743454582,-658.9,0.00014104,3]
[330734729,1719743454592,-500.0,0.00014104,3]
[330734730,1719743454602,-500.0,0.00014104,3]
[330734731,1719743454612,-618.25,0.00014104,3]
[330734732,1719743454622,-500.0,0.00014104,3]
[330734733,1719743454632,-311.14206,0.00014104,2]
[330734734,1719743454644,-151.0,0.00014104,2]
[330734735,1719743454658,-151.0,0.00014104,2]
[330734736,1719743454668,-500.0,0.00014104,2]
[330734737,1719743454679,-500.0,0.00014104,2]
[330734738,1719743454691,-500.0,0.00014104,3]
[330734739,1719743454702,-151.0,0.00014104,2]
[330734740,1719743454711,-288.211825,0.00014104,2]
[330734741,1719743454721,-809.23,0.00014104,3]
[330734742,1719743454733,-801.47,0.00014104,3]
[330734743,1719743454743,-500.0,0.00014104,3]
[330734744,1719743454753,-500.0,0.00014104,3]
[330734745,1719743454763,-288.211825,0.00014104,2]
[330734746,1719743454774,-500.0,0.00014104,3]
[330734747,1719743454784,-500.0,0.00014104,3]
[330734748,1719743454795,-500.0,0.00014104,3]
[330734749,1719743454805,-500.0,0.00014104,3]